fUSD/lending_fUSD_20250115
["ID","MTS","AMOUNT","RATE_DAILY","PERIOD"]
[349015877,1736937056540,-4025.64535739,0.00018772,2]
[349015878,1736937056552,-721.31488769,0.00019772,30]
[349015879,1736937056563,-710.197772,0.00019772,30]
[349015880,1736937056618,-730.59,0.0001164,2]
[349015881,1736937056628,-74.82868457,0.00019772,30]
[349015882,1736937056667,-500.0,0.00010821,2]
[349015883,1736937056677,-164.62,0.00011095,2]
[349015884,1736937056686,-6842.75194817,0.00019772,30]
[349015885,1736937056698,-1382.51077829,0.00019772,30]
[349015886,1736937056709,-804.16208256,0.00019772,30]
[349015887,1736937056724,-19077.3889939,0.00019772,30]
[349015888,1736937056735,-4106.49371718,0.00019772,30]
[349015889,1736937056963,-500.0,9.999e-05,2]
[349015890,1736937056973,-500.0,0.00010273,2]
[349015891,1736937056983,-733.66,0.00010546,2]
[349015892,1736937056992,-500.0,0.00010547,2]
[349015893,1736937057002,-733.66,0.0001082,2]
[349015894,1736937057011,-733.66,0.00011094,2]
[349015895,1736937057020,-500.0,0.00011095,2]
[349015896,1736937057030,-500.0,0.00011369,2]
[349015897,1736937057040,-500.0,0.00011643,2]
[349015898,1736937057049,-730.59,0.00011914,2]
[349015899,1736937057059,-500.0,0.00011917,2]
[349015900,1736937057069,-730.59,0.00012188,2]
[349015901,1736937057078,-500.0,0.00012191,2]
[349015902,1736937057087,-730.59,0.00012462,2]
[349015903,1736937057096,-500.0,0.00012465,2]
[349015904,1736937057106,-730.59,0.00012736,2]
[349015905,1736937057116,-500.0,0.00012739,2]
[349015906,1736937057126,-730.59,0.0001301,2]
[349015907,1736937057136,-500.0,0.00013013,2]
[349015908,1736937057145,-730.59,0.00013284,2]
[349015909,1736937057155,-500.0,0.00013287,2]
[349015910,1736937057166,-730.59,0.00013558,2]
[349015911,1736937057176,-730.59,0.00013832,2]
[349015912,1736937057186,-730.59,0.00014106,2]
[349015913,1736937057197,-730.59,0.0001438,2]
[349015914,1736937057207,-62396.05061519,0.00019772,30]
[349015915,1736937057228,-500.0,0.00010821,2]
[349015916,1736937057237,-13934.03308031,0.00019772,30]
[349015917,1736937057249,-370.329914,0.00019772,30]
[349015918,1736937057262,-16409.06895964,0.00019772,30]
[349015919,1736937057727,-500.0,9.999e-05,2]
[349015920,1736937057736,-500.0,0.00010273,2]
[349015921,1736937057747,-166.193841,0.00010818,2]
[349015922,1736937057757,-838.11,0.00011092,2]
[349015923,1736937057766,-500.0,0.00011095,2]
[349015924,1736937057776,-838.11,0.00011366,2]
[349015925,1736937057786,-166.193841,0.00011366,2]
[349015926,1736937057799,-733.66,0.00011368,2]
[349015927,1736937057809,-368.21,0.00011369,2]
[349015928,1736937057818,-838.11,0.0001164,2]
[349015929,1736937057828,-733.66,0.00011642,2]
[349015930,1736937057837,-166.193841,0.00011914,2]
[349015931,1736937057847,-733.66,0.00011916,2]
[349015932,1736937057856,-200.0,0.00012055,2]
[349015933,1736937057867,-166.193841,0.00012462,2]
[349015934,1736937057877,-500.0,0.00013561,2]
[349015935,1736937057886,-500.0,0.00013835,2]
[349015936,1736937057895,-500.0,0.00014109,2]
[349015937,1736937057905,-500.0,0.00014383,2]
[349015938,1736937057915,-730.59,0.00014654,2]
[349015939,1736937057924,-500.0,0.00014657,2]
[349015940,1736937057933,-730.59,0.00014928,2]
[349015941,1736937057943,-500.0,0.00014931,2]
[349015942,1736937057952,-730.59,0.00015202,2]
[349015943,1736937057963,-500.0,0.00015205,2]
[349015944,1736937057972,-730.59,0.00015476,2]
[349015945,1736937057982,-500.0,0.00015479,2]
[349015946,1736937057992,-730.59,0.0001575,2]
[349015947,1736937058001,-500.0,0.00015753,2]
[349015948,1736937058011,-730.59,0.00016024,2]
[349015949,1736937058020,-500.0,0.00016027,2]
[349015950,1736937058030,-730.59,0.00016298,2]
[349015951,1736937058039,-191.9330943,0.00016301,2]
[349015952,1736937058049,-730.59,0.00016572,2]
[349015953,1736937058059,-9629.0,0.00016747,2]
[349015954,1736937058068,-730.59,0.00016846,2]
[349015955,1736937058078,-730.66,0.0001712,2]
[349015956,1736937058088,-23295.6461417,0.00019772,30]
[349015957,1736937058101,-24955.581605,0.00019772,30]
[349015958,1736937058112,-488.83832326,0.00019772,30]
[349015959,1736937058123,-1433.023205,0.00019772,30]
[349015961,1736937193164,2000.0,0.00023,120]
[349015962,1736937793882,982.041835,0.00023,120]
[349015963,1736937804933,34.3,8.219e-05,2]
[349015964,1736937804962,475.67,8.219e-05,2]
[349015985,1736938232292,-562.13,9.616e-05,2]
[349015986,1736938232302,-165.28,9.879e-05,2]
[349015987,1736938232312,-506.4708,9.9e-05,2]
[349015988,1736938232321,-300.0,9.928e-05,2]
[349015989,1736938232331,-3801.9789794,9.928e-05,2]
[349015990,1736938232340,-302.79,9.929e-05,3]
[349015991,1736938232349,-1223.18619876,9.929e-05,2]
[349015992,1736938232368,-575.65588372,9.929e-05,2]
[349015993,1736938232380,-1396.50221221,9.929e-05,2]
[349015994,1736938232392,-258.35204317,9.929e-05,2]
[349015995,1736938232426,-5794.15366214,9.929e-05,2]
[349015996,1736938232435,-150.0,9.973e-05,2]
[349015997,1736938232444,-1000.0,9.998e-05,2]
[349015998,1736938232454,-512.67774885,9.999e-05,2]
[349015999,1736938232463,-500.0,9.999e-05,2]
[349016000,1736938232472,-500.0,9.999e-05,2]
[349016001,1736938232481,-500.0,9.999e-05,2]
[349016002,1736938232491,-500.0,9.999e-05,2]
[349016003,1736938232500,-500.0,9.999e-05,2]
[349016004,1736938232509,-500.0,9.999e-05,2]
[349016005,1736938232518,-500.0,9.999e-05,2]
[349016006,1736938232527,-500.0,9.999e-05,2]
[349016007,1736938232537,-500.0,9.999e-05,2]
[349016008,1736938232546,-500.0,9.999e-05,2]
[349016009,1736938232555,-500.0,9.999e-05,2]
[349016011,1736938232564,-239.30512312,9.999e-05,2]
[349016031,1736938232766,-260.69487688,9.999e-05,2]
[349016033,1736938232775,-500.0,9.999e-05,2]
[349016035,1736938232785,-403.75512307,9.999e-05,2]
[349016040,1736938232822,-96.24487693,9.999e-05,2]
[349016042,1736938232831,-500.0,9.999e-05,2]
[349016044,1736938232840,-185.94137307,9.999e-05,2]
[349016067,1736938238026,-314.05862693,9.999e-05,2]
[349016068,1736938238036,-271.02294223,9.999e-05,2]
[349016069,1736938238048,-228.97705777,9.999e-05,2]
[349016070,1736938238057,-500.0,9.999e-05,2]
[349016071,1736938238067,-328.60411753,9.999e-05,2]
[349016072,1736938238078,-171.39588247,9.999e-05,2]
[349016073,1736938238087,-500.0,9.999e-05,2]
[349016074,1736938238096,-445.862043,9.999e-05,2]
[349016075,1736938238106,-500.0,9.999e-05,2]
[349016076,1736938238115,-506.30111724,9.999e-05,2]
[349016077,1736938238124,-500.0,9.999e-05,2]
[349016078,1736938238133,-500.0,9.999e-05,2]
[349016079,1736938238143,-500.0,9.999e-05,2]
[349016080,1736938238152,-500.0,9.999e-05,2]
[349016081,1736938238161,-500.0,9.999e-05,2]
[349016082,1736938238170,-500.0,9.999e-05,2]
[349016083,1736938238179,-581.69,9.999e-05,2]
[349016084,1736938238188,-500.0,9.999e-05,2]
[349016085,1736938238198,-376.45495344,9.999e-05,2]
[349016086,1736938238207,-500.0,9.999e-05,2]
[349016087,1736938238216,-500.0,9.999e-05,2]
[349016088,1736938238225,-500.0,9.999e-05,2]
[349016089,1736938238234,-500.0,9.999e-05,2]
[349016090,1736938238243,-500.0,9.999e-05,2]
[349016091,1736938238252,-247.83168886,9.999e-05,2]
[349016092,1736938238262,-500.0,9.999e-05,2]
[349016093,1736938238271,-500.0,9.999e-05,2]
[349016094,1736938238281,-514.10960007,9.999e-05,2]
[349016095,1736938238290,-500.0,9.999e-05,2]
[349016096,1736938238299,-500.0,9.999e-05,2]
[349016097,1736938238308,-500.0,9.999e-05,2]
[349016098,1736938238317,-500.0,9.999e-05,2]
[349016099,1736938238327,-500.0,9.999e-05,2]
[349016100,1736938238337,-500.0,9.999e-05,2]
[349016101,1736938238346,-622.6,9.999e-05,2]
[349016102,1736938238356,-500.0,9.999e-05,2]
[349016103,1736938238365,-500.0,9.999e-05,2]
[349016104,1736938238374,-500.0,9.999e-05,2]
[349016105,1736938238384,-500.0,9.999e-05,2]
[349016106,1736938238394,-500.0,9.999e-05,2]
[349016107,1736938238403,-500.0,9.999e-05,2]
[349016108,1736938238412,-500.0,9.999e-05,2]
[349016109,1736938238421,-483.75471492,9.999e-05,2]
[349016110,1736938238433,-16.24528508,9.999e-05,2]
[349016111,1736938238443,-500.0,9.999e-05,2]
[349016112,1736938238452,-500.0,9.999e-05,2]
[349016113,1736938238461,-500.0,9.999e-05,2]
[349016114,1736938238471,-367.65060348,9.999e-05,2]
[349016115,1736938238480,-713.9,0.00010023,2]
[349016116,1736938238489,-1000.0,0.00010023,2]
[349016117,1736938238498,-250.0,0.00010132,2]
[349016118,1736938238507,-154.65,0.00010137,2]
[349016119,1736938238517,-862.86,0.00010138,2]
[349016120,1736938238526,-500.0,0.00010273,2]
[349016121,1736938238535,-500.0,0.00010273,2]
[349016122,1736938238544,-500.0,0.00010273,2]
[349016124,1736938238554,-500.0,0.00010273,2]
[349016129,1736938238563,-500.0,0.00010273,2]
[349016134,1736938238573,-575.72,0.00010273,2]
[349016137,1736938238582,-500.0,0.00010273,2]
[349016138,1736938238591,-500.0,0.00010273,2]
[349016140,1736938238601,-500.0,0.00010273,2]
[349016142,1736938238611,-500.0,0.00010273,2]
[349016143,1736938238620,-500.0,0.00010273,2]
[349016145,1736938238630,-415.32934239,0.00010273,2]
[349016147,1736938238639,-500.0,0.00010273,2]
[349016148,1736938238649,-500.0,0.00010273,2]
[349016149,1736938238658,-183.06,0.00010273,2]
[349016150,1736938238667,-500.0,0.00010273,2]
[349016151,1736938238676,-500.0,0.00010273,2]
[349016153,1736938238685,-500.0,0.00010273,2]
[349016155,1736938238693,-519.81893047,0.00010273,2]
[349016157,1736938238703,-500.0,0.00010273,2]
[349016159,1736938238712,-500.0,0.00010273,2]
[349016161,1736938238721,-500.0,0.00010273,2]
[349016163,1736938238730,-500.0,0.00010273,2]
[349016165,1736938238739,-500.0,0.00010273,2]
[349016167,1736938238749,-500.0,0.00010273,2]
[349016169,1736938238759,-500.0,0.00010273,2]
[349016171,1736938238769,-500.0,0.00010273,2]
[349016173,1736938238778,-500.0,0.00010273,2]
[349016175,1736938238787,-500.0,0.00010273,2]
[349016176,1736938238795,-500.0,0.00010273,2]
[349016177,1736938238804,-500.0,0.00010273,2]
[349016178,1736938238813,-500.0,0.00010273,2]
[349016179,1736938238824,-205.67408064,0.00010273,2]
[349016180,1736938238834,-500.0,0.00010273,2]
[349016181,1736938238845,-500.0,0.00010273,2]
[349016182,1736938238855,-500.0,0.00010273,2]
[349016183,1736938238864,-500.0,0.00010273,2]
[349016184,1736938238873,-500.0,0.00010273,2]
[349016185,1736938238882,-500.0,0.00010273,2]
[349016186,1736938238891,-500.0,0.00010273,2]
[349016187,1736938238901,-500.0,0.00010273,2]
[349016188,1736938238910,-500.0,0.00010273,2]
[349016189,1736938238920,-176.63,0.00010325,2]
[349016190,1736938238929,-250.0,0.0001042,2]
[349016191,1736938238940,-509.97,0.00010474,2]
[349016192,1736938238950,-150.380996,0.00010544,2]
[349016193,1736938238960,-150.563057,0.00010544,2]
[349016194,1736938238969,-172.161847,0.00010544,2]
[349016195,1736938238979,-174.171624,0.00010544,2]
[349016196,1736938238989,-175.926458,0.00010544,2]
[349016197,1736938238998,-164.632628,0.00010544,2]
[349016198,1736938239007,-175.926455,0.00010544,2]
[349016199,1736938239018,-175.926455,0.00010544,2]
[349016200,1736938239028,-170.279541,0.00010544,2]
[349016201,1736938239037,-538.24,0.00010546,2]
[349016202,1736938239046,-500.0,0.00010547,2]
[349016203,1736938239055,-500.0,0.00010547,2]
[349016204,1736938239064,-215.68569713,0.00010547,2]
[349016205,1736938239073,-518.03228948,0.00010547,2]
[349016206,1736938239083,-500.0,0.00010547,2]
[349016207,1736938239092,-500.0,0.00010547,2]
[349016208,1736938239101,-500.0,0.00010547,2]
[349016209,1736938239110,-500.0,0.00010547,2]
[349016210,1736938239119,-500.0,0.00010547,2]
[349016211,1736938239128,-500.0,0.00010547,2]
[349016212,1736938239137,-500.0,0.00010547,2]
[349016213,1736938239147,-500.0,0.00010547,2]
[349016214,1736938239155,-500.0,0.00010547,2]
[349016215,1736938239164,-500.0,0.00010547,2]
[349016216,1736938239173,-500.0,0.00010547,2]
[349016217,1736938239182,-500.0,0.00010547,2]
[349016218,1736938239191,-500.0,0.00010547,2]
[349016219,1736938239200,-500.0,0.00010547,2]
[349016220,1736938239209,-500.0,0.00010547,2]
[349016221,1736938239219,-500.0,0.00010547,2]
[349016222,1736938239227,-500.0,0.00010547,2]
[349016223,1736938239236,-500.0,0.00010547,2]
[349016224,1736938239245,-390.67211508,0.00010547,2]
[349016225,1736938239255,-243.66444744,0.00010547,2]
[349016226,1736938239265,-500.0,0.00010547,2]
[349016227,1736938239274,-500.0,0.00010547,2]
[349016228,1736938239283,-500.0,0.00010547,2]
[349016229,1736938239293,-500.0,0.00010547,2]
[349016230,1736938239304,-500.0,0.00010547,2]
[349016231,1736938239314,-500.0,0.00010547,2]
[349016232,1736938239323,-201.26899876,0.00010547,2]
[349016233,1736938239332,-500.0,0.00010817,2]
[349016234,1736938239341,-500.0,0.00010817,2]
[349016235,1736938239350,-500.0,0.00010817,2]
[349016236,1736938239359,-502.83098358,0.00010817,2]
[349016237,1736938239368,-500.0,0.00010817,2]
[349016238,1736938239378,-500.0,0.00010817,2]
[349016239,1736938239387,-500.0,0.00010817,2]
[349016240,1736938239397,-500.0,0.00010817,2]
[349016241,1736938239406,-500.0,0.00010817,2]
[349016242,1736938239415,-500.0,0.00010817,2]
[349016243,1736938239424,-500.0,0.00010817,2]
[349016244,1736938239433,-500.0,0.00010817,2]
[349016245,1736938239443,-500.0,0.00010817,2]
[349016246,1736938239452,-500.0,0.00010817,2]
[349016247,1736938239461,-500.0,0.00010817,2]
[349016248,1736938239470,-500.0,0.00010817,2]
[349016249,1736938239479,-635.35805871,0.00010817,2]
[349016250,1736938239488,-500.0,0.00010817,2]
[349016251,1736938239497,-500.0,0.00010817,2]
[349016252,1736938239506,-500.0,0.00010817,2]
[349016253,1736938239515,-511.19986976,0.00010817,2]
[349016254,1736938239524,-500.0,0.00010817,2]
[349016255,1736938239533,-500.0,0.00010817,2]
[349016256,1736938239542,-500.0,0.00010817,2]
[349016257,1736938239551,-500.0,0.00010817,2]
[349016258,1736938239560,-500.0,0.00010817,2]
[349016259,1736938239569,-500.0,0.00010817,2]
[349016260,1736938239578,-501.2975234,0.00010817,2]
[349016261,1736938239587,-500.0,0.00010817,2]
[349016262,1736938239596,-643.1596436,0.00010817,2]
[349016263,1736938239606,-504.73186092,0.00010817,2]
[349016264,1736938239615,-500.0,0.00010817,2]
[349016265,1736938239624,-500.0,0.00010817,2]
[349016266,1736938239633,-500.0,0.00010817,2]
[349016267,1736938239644,-500.0,0.00010817,2]
[349016268,1736938239657,-500.0,0.00010817,2]
[349016269,1736938239668,-500.0,0.00010817,2]
[349016270,1736938239677,-500.0,0.00010817,2]
[349016271,1736938239686,-500.0,0.00010817,2]
[349016272,1736938239695,-598.19315747,0.00010817,2]
[349016273,1736938239706,-500.0,0.00010817,2]
[349016274,1736938239716,-500.0,0.00010817,2]
[349016275,1736938239726,-2017.03,0.00010817,2]
[349016276,1736938239736,-500.0,0.00010817,2]
[349016277,1736938239747,-500.0,0.00010817,2]
[349016278,1736938239756,-500.0,0.00010817,2]
[349016279,1736938239766,-501.17288416,0.00010817,2]
[349016280,1736938239775,-506.29581956,0.00010817,2]
[349016281,1736938239785,-500.0,0.00010817,2]
[349016282,1736938239794,-500.0,0.00010817,2]
[349016283,1736938239803,-500.0,0.00010817,2]
[349016284,1736938239814,-500.0,0.00010817,2]
[349016285,1736938239823,-500.0,0.00010817,2]
[349016286,1736938239832,-322.69023424,0.00010817,2]
[349016287,1736938239842,-500.0,0.00010817,2]
[349016288,1736938239851,-500.0,0.00010817,2]
[349016289,1736938239860,-500.0,0.00010817,2]
[349016290,1736938239870,-500.0,0.00010817,2]
[349016291,1736938239879,-500.0,0.00010817,2]
[349016292,1736938239888,-500.0,0.00010817,2]
[349016293,1736938239898,-500.0,0.00010817,2]
[349016294,1736938239908,-268.66363971,0.00010817,2]
[349016296,1736938239917,-500.0,0.00010817,2]
[349016297,1736938239926,-500.0,0.00010817,2]
[349016298,1736938239938,-500.0,0.00010817,2]
[349016299,1736938239948,-502.91779113,0.00010817,2]
[349016300,1736938239957,-500.0,0.00010817,2]
[349016301,1736938239966,-2018.18,0.00010817,2]
[349016303,1736938239976,-500.0,0.00010817,2]
[349016305,1736938239986,-500.0,0.00010817,2]
[349016306,1736938239995,-500.0,0.00010817,2]
[349016307,1736938240004,-500.0,0.00010817,2]
[349016308,1736938240014,-500.0,0.00010817,2]
[349016309,1736938240023,-500.0,0.00010817,2]
[349016310,1736938240032,-155.94650853,0.00010817,2]
[349016311,1736938240042,-500.0,0.00010817,2]
[349016312,1736938240051,-500.0,0.00010817,2]
[349016313,1736938240061,-500.0,0.00010817,2]
[349016314,1736938240070,-452.77679781,0.00010817,2]
[349016315,1736938240079,-500.0,0.00010817,2]
[349016316,1736938240088,-892.74,0.00010817,2]
[349016317,1736938240097,-944.62,0.00010817,2]
[349016318,1736938240106,-500.0,0.00010817,2]
[349016319,1736938240116,-500.0,0.00010817,2]
[349016320,1736938240125,-500.0,0.00010817,2]
[349016321,1736938240134,-500.0,0.00010817,2]
[349016322,1736938240143,-500.0,0.00010817,2]
[349016323,1736938240153,-534.87,0.00010817,2]
[349016324,1736938240162,-500.0,0.00010817,2]
[349016325,1736938240172,-500.0,0.00010817,2]
[349016326,1736938240182,-500.0,0.00010817,2]
[349016327,1736938240192,-500.0,0.00010817,2]
[349016328,1736938240201,-825.03,0.00010817,2]
[349016329,1736938240210,-523.43,0.00010817,2]
[349016330,1736938240219,-500.0,0.00010817,2]
[349016331,1736938240229,-500.0,0.00010817,2]
[349016332,1736938240238,-500.0,0.00010817,2]
[349016333,1736938240247,-500.0,0.00010817,2]
[349016334,1736938240256,-500.0,0.00010817,2]
[349016335,1736938240266,-500.0,0.00010817,2]
[349016336,1736938240276,-500.0,0.00010817,2]
[349016337,1736938240285,-500.0,0.00010817,2]
[349016338,1736938240295,-500.0,0.00010817,2]
[349016339,1736938240304,-500.0,0.00010817,2]
[349016340,1736938240314,-500.0,0.00010817,2]
[349016341,1736938240324,-500.0,0.00010817,2]
[349016342,1736938240334,-500.0,0.00010817,2]
[349016343,1736938240343,-500.0,0.00010817,2]
[349016344,1736938240352,-500.0,0.00010817,2]
[349016345,1736938240362,-500.0,0.00010817,2]
[349016346,1736938240371,-500.0,0.00010817,2]
[349016347,1736938240380,-500.0,0.00010817,2]
[349016348,1736938240390,-500.0,0.00010817,2]
[349016349,1736938240400,-500.0,0.00010817,2]
[349016350,1736938240409,-500.0,0.00010817,2]
[349016351,1736938240420,-500.0,0.00010817,2]
[349016352,1736938240429,-500.0,0.00010817,2]
[349016353,1736938240439,-500.0,0.00010817,2]
[349016354,1736938240448,-500.0,0.00010817,2]
[349016355,1736938240459,-500.0,0.00010818,2]
[349016356,1736938240469,-501.33127077,0.00010818,2]
[349016357,1736938240479,-500.335631,0.00010818,2]
[349016358,1736938240489,-500.88216737,0.00010818,2]
[349016368,1736938240675,-500.0,0.00010818,2]
[349016370,1736938240685,-500.0,0.00010818,2]
[349016372,1736938240694,-500.0,0.00010818,2]
[349016373,1736938240703,-500.0,0.00010818,2]
[349016375,1736938240713,-302.7750763,0.00010818,2]
[349016377,1736938240722,-500.0,0.00010818,2]
[349016379,1736938240731,-500.0,0.00010818,2]
[349016381,1736938240740,-500.0,0.00010818,2]
[349016382,1736938240749,-500.0,0.00010818,2]
[349016384,1736938240759,-500.0,0.00010818,2]
[349016386,1736938240768,-500.0,0.00010818,2]
[349016388,1736938240777,-820.05,0.00010818,2]
[349016390,1736938240786,-538.51,0.00010818,2]
[349016392,1736938240795,-500.0,0.00010818,2]
[349016393,1736938240804,-500.0,0.00010818,2]
[349016394,1736938240813,-592.82229923,0.00010818,2]
[349016395,1736938240823,-504.78747258,0.00010818,2]
[349016396,1736938240832,-458.81155341,0.00010818,2]
[349016397,1736938240841,-500.0,0.00010818,2]
[349016398,1736938240851,-500.0,0.00010818,2]
[349016399,1736938240860,-500.0,0.00010818,2]
[349016400,1736938240869,-504.35671074,0.00010818,2]
[349016401,1736938240878,-500.0,0.00010818,2]
[349016402,1736938240888,-500.0,0.00010818,2]
[349016403,1736938240898,-506.28796639,0.00010818,2]
[349016404,1736938240907,-500.0,0.00010818,2]
[349016405,1736938240916,-500.0,0.00010818,2]
[349016406,1736938240925,-500.0,0.00010818,2]
[349016408,1736938240934,-500.0,0.00010818,2]
[349016410,1736938240947,-500.0,0.00010818,2]
[349016412,1736938240956,-500.0,0.00010818,2]
[349016414,1736938240965,-668.45,0.00010818,2]
[349016416,1736938240974,-500.0,0.00010818,2]
[349016418,1736938240985,-500.0,0.00010818,2]
[349016420,1736938240995,-500.0,0.00010818,2]
[349016422,1736938241004,-500.0,0.00010818,2]
[349016424,1736938241013,-501.64215988,0.00010818,2]
[349016426,1736938241025,-500.0,0.00010818,2]
[349016428,1736938241035,-500.0,0.00010818,2]
[349016430,1736938241044,-500.0,0.00010818,2]
[349016432,1736938241052,-500.0,0.00010818,2]
[349016434,1736938241061,-502.05378049,0.00010818,2]
[349016436,1736938241071,-500.0,0.00010818,2]
[349016438,1736938241080,-500.0,0.00010818,2]
[349016440,1736938241090,-500.0,0.00010818,2]
[349016442,1736938241099,-500.0,0.00010818,2]
[349016444,1736938241109,-801.93,0.00010818,2]
[349016446,1736938241118,-502.27187946,0.00010818,2]
[349016448,1736938241128,-500.0,0.00010818,2]
[349016450,1736938241137,-500.0,0.00010818,2]
[349016452,1736938241147,-501.45300656,0.00010818,2]
[349016454,1736938241156,-500.0,0.00010818,2]
[349016456,1736938241165,-500.0,0.00010818,2]
[349016458,1736938241175,-500.0,0.00010818,2]
[349016460,1736938241184,-500.0,0.00010818,2]
[349016462,1736938241194,-500.0,0.00010818,2]
[349016464,1736938241205,-500.0,0.00010818,2]
[349016466,1736938241215,-502.96632916,0.00010818,2]
[349016468,1736938241224,-501.76576356,0.00010818,2]
[349016470,1736938241234,-500.0,0.00010818,2]
[349016472,1736938241244,-500.0,0.00010818,2]
[349016474,1736938241256,-500.0,0.00010818,2]
[349016476,1736938241265,-500.0,0.00010818,2]
[349016478,1736938241275,-500.0,0.00010818,2]
[349016480,1736938241284,-511.77591249,0.00010818,2]
[349016482,1736938241294,-500.0,0.00010818,2]
[349016484,1736938241304,-500.0,0.00010818,2]
[349016486,1736938241313,-500.0,0.00010818,2]
[349016488,1736938241322,-500.0,0.00010818,2]
[349016490,1736938241332,-500.0,0.00010818,2]
[349016492,1736938241341,-500.0,0.00010818,2]
[349016494,1736938241350,-500.0,0.00010818,2]
[349016496,1736938241360,-1857.13,0.00010818,2]
[349016498,1736938241369,-500.0,0.00010818,2]
[349016500,1736938241379,-500.0,0.00010818,2]
[349016502,1736938241388,-500.0,0.00010818,2]
[349016504,1736938241398,-500.0,0.00010818,2]
[349016506,1736938241408,-500.0,0.00010818,2]
[349016508,1736938241417,-500.0,0.00010818,2]
[349016510,1736938241426,-555.56992678,0.00010818,2]
[349016512,1736938241436,-500.0,0.00010818,2]
[349016514,1736938241445,-500.0,0.00010818,2]
[349016516,1736938241454,-620.47,0.00010818,2]
[349016518,1736938241463,-500.0,0.00010818,2]
[349016520,1736938241472,-500.0,0.00010818,2]
[349016522,1736938241482,-500.59029031,0.00010818,2]
[349016524,1736938241492,-500.0,0.00010818,2]
[349016526,1736938241502,-500.0,0.00010818,2]
[349016528,1736938241511,-500.0,0.00010818,2]
[349016530,1736938241520,-500.0,0.00010818,2]
[349016532,1736938241530,-915.0,0.00010818,2]
[349016534,1736938241539,-500.0,0.00010818,2]
[349016536,1736938241552,-500.0,0.00010818,2]
[349016538,1736938241563,-500.0,0.00010818,2]
[349016540,1736938241572,-500.0,0.00010818,2]
[349016542,1736938241581,-502.63534614,0.00010818,2]
[349016544,1736938241590,-500.0,0.00010818,2]
[349016547,1736938241601,-500.0,0.00010818,2]
[349016549,1736938241611,-500.0,0.00010818,2]
[349016551,1736938241620,-500.0,0.00010818,2]
[349016553,1736938241629,-1219.96,0.00010818,2]
[349016554,1736938241639,-500.0,0.00010818,2]
[349016557,1736938241649,-500.0,0.00010818,2]
[349016558,1736938241658,-500.0,0.00010818,2]
[349016560,1736938241668,-500.0,0.00010818,2]
[349016562,1736938241677,-500.0,0.00010818,2]
[349016564,1736938241686,-500.0,0.00010818,2]
[349016566,1736938241695,-500.0,0.00010818,2]
[349016568,1736938241705,-500.0,0.00010818,2]
[349016570,1736938241714,-500.0,0.00010818,2]
[349016572,1736938241725,-500.0,0.00010818,2]
[349016575,1736938241734,-500.0,0.00010818,2]
[349016577,1736938241745,-500.0,0.00010818,2]
[349016579,1736938241755,-500.0,0.00010818,2]
[349016580,1736938241764,-500.0,0.00010818,2]
[349016582,1736938241774,-304.0739696,0.00010818,2]
[349016584,1736938241784,-500.0,0.00010818,2]
[349016586,1736938241793,-500.0,0.00010818,2]
[349016588,1736938241802,-500.0,0.00010818,2]